fUSD/lending_fUSD_20250823
["ID","MTS","AMOUNT","RATE_DAILY","PERIOD"]
[380973855,1755913894176,-490.96,0.00015068,2]
[380973856,1755913894186,-194.96034429,0.00015068,2]
[380973857,1755913894197,-400.0,0.00015068,2]
[380973858,1755913894207,-400.0,0.00015068,2]
[380973859,1755913894220,-400.0,0.00015068,2]
[380973860,1755913894230,-495.67,0.00015068,2]
[380973861,1755913894241,-404.65017395,0.00015068,2]
[380973862,1755913894251,-400.0,0.00015068,2]
[380973863,1755913894262,-403.48866298,0.00015068,2]
[380973864,1755913894272,-419.22,0.00015068,2]
[380973865,1755913894283,-400.0,0.00015068,2]
[380973866,1755913894293,-400.0,0.00015068,2]
[380973867,1755913894304,-400.0,0.00015068,2]
[380973868,1755913894315,-400.0,0.00015068,2]
[380973869,1755913894327,-400.0,0.00015068,2]
[380973870,1755913894339,-400.0,0.00015068,2]
[380973871,1755913894350,-607.7,0.00015068,2]
[380973872,1755913894360,-400.0,0.00015068,2]
[380973873,1755913894377,-400.0,0.00015068,2]
[380973874,1755913894388,-400.0,0.00015068,2]
[380973875,1755913894400,-429.67,0.00015068,2]
[380973876,1755913894411,-400.0,0.00015068,2]
[380973877,1755913894422,-447.55764958,0.00015068,2]
[380973878,1755913894436,-400.0,0.00015068,2]
[380973879,1755913894454,-400.0,0.00015068,2]
[380973880,1755913894464,-400.0,0.00015068,2]
[380973881,1755913894475,-280.045352,0.00015068,2]
[380973882,1755913894485,-400.0,0.00015068,2]
[380973883,1755913894496,-589.87,0.00015068,2]
[380973884,1755913894507,-400.0,0.00015068,2]
[380973885,1755913894517,-400.0,0.00015068,2]
[380973886,1755913894527,-151.0,0.00015068,2]
[380973887,1755913894538,-400.0,0.00015068,2]
[380973888,1755913894548,-1099.03,0.00015068,2]
[380973889,1755913894559,-400.0,0.00015068,2]
[380973890,1755913894569,-400.0,0.00015068,2]
[380973891,1755913894580,-400.0,0.00015068,2]
[380973892,1755913894592,-400.0,0.00015068,2]
[380973893,1755913894603,-151.0,0.00015068,2]
[380973894,1755913894614,-400.0,0.00015068,2]
[380973895,1755913894625,-400.0,0.00015068,2]
[380973896,1755913894637,-400.0,0.00015068,2]
[380973897,1755913894647,-400.0,0.00015068,2]
[380973898,1755913894657,-404.03723692,0.00015068,2]
[380973899,1755913894668,-465.7,0.00015068,2]
[380973900,1755913894678,-400.0,0.00015068,2]
[380973901,1755913894689,-565.88,0.00015068,2]
[380973902,1755913894698,-400.0,0.00015068,2]
[380973903,1755913894709,-400.0,0.00015068,2]
[380973904,1755913894719,-403.75327167,0.00015068,2]
[380973905,1755913894730,-400.0,0.00015068,2]
[380973906,1755913894740,-400.0,0.00015068,2]
[380973907,1755913894751,-400.0,0.00015068,2]
[380973908,1755913894761,-400.0,0.00015068,2]
[380973909,1755913894780,-400.0,0.00015068,2]
[380973910,1755913894791,-403.98093744,0.00015068,2]
[380973911,1755913894805,-151.0,0.00015068,2]
[380973912,1755913894816,-620.85,0.00015068,2]
[380973913,1755913894827,-400.0,0.00015068,2]
[380973914,1755913894838,-400.0,0.00015068,2]
[380973915,1755913894850,-400.0,0.00015068,2]
[380973916,1755913894861,-406.7988448,0.00015068,2]
[380973917,1755913894871,-400.0,0.00015068,2]
[380973918,1755913894882,-944.89,0.00015068,2]
[380973919,1755913894892,-436.18781571,0.00015068,2]
[380973920,1755913894903,-400.0,0.00015068,2]
[380973921,1755913894918,-153.838404,0.00015068,2]
[380973922,1755913894929,-400.0,0.00015068,2]
[380973923,1755913894939,-400.0,0.00015068,2]
[380973924,1755913894951,-400.0,0.00015068,2]
[380973925,1755913894961,-400.0,0.00015068,2]
[380973926,1755913894971,-153.838404,0.00015068,2]
[380973927,1755913894982,-400.0,0.00015068,2]
[380973928,1755913894993,-400.0,0.00015068,2]
[380973929,1755913895004,-400.0,0.00015068,2]
[380973930,1755913895015,-400.0,0.00015068,2]
[380973931,1755913895026,-153.838404,0.00015068,2]
[380973932,1755913895036,-153.838404,0.00015068,2]
[380973933,1755913895048,-400.0,0.00015068,2]
[380973934,1755913895058,-400.0,0.00015068,2]
[380973935,1755913895069,-400.0,0.00015068,2]
[380973936,1755913895079,-400.0,0.00015068,2]
[380973937,1755913895090,-400.0,0.00015068,2]
[380973938,1755913895101,-400.0,0.00015068,2]
[380973939,1755913895117,-400.0,0.00015068,2]
[380973940,1755913895127,-400.0,0.00015068,2]
[380973941,1755913895138,-400.0,0.00015068,2]
[380973942,1755913895148,-400.0,0.00015068,2]
[380973943,1755913895158,-400.0,0.00015068,2]
[380973944,1755913895170,-400.0,0.00015068,2]
[380973945,1755913895180,-400.0,0.00015068,2]
[380973946,1755913895194,-400.0,0.00015068,2]
[380973947,1755913895204,-400.0,0.00015068,2]
[380973948,1755913895214,-400.0,0.00015068,2]
[380973949,1755913895226,-400.0,0.00015068,2]
[380973950,1755913895236,-437.18084628,0.00015068,2]
[380973951,1755913895246,-400.0,0.00015068,2]
[380973952,1755913895257,-400.0,0.00015068,2]
[380973953,1755913895267,-400.0,0.00015068,2]
[380973954,1755913895277,-431.13,0.00015068,2]
[380973955,1755913895288,-400.0,0.00015068,2]
[380973956,1755913895299,-968.0,0.00015068,2]
[380973957,1755913895309,-400.0,0.00015068,2]
[380973958,1755913895321,-400.0,0.00015068,2]
[380973959,1755913895332,-702.52,0.00015068,2]
[380973960,1755913895342,-629.14,0.00015068,2]
[380973961,1755913895352,-400.0,0.00015068,2]
[380973962,1755913895362,-400.0,0.00015068,2]
[380973963,1755913895372,-400.0,0.00015068,2]
[380973964,1755913895383,-704.82,0.00015068,2]
[380973965,1755913895394,-400.0,0.00015068,2]
[380973966,1755913895404,-441.9,0.00015068,2]
[380973967,1755913895415,-400.0,0.00015068,2]
[380973968,1755913895427,-400.0,0.00015068,2]
[380973969,1755913895438,-426.57,0.00015068,2]
[380973970,1755913895448,-400.0,0.00015068,2]
[380973971,1755913895458,-400.0,0.00015068,2]
[380973972,1755913895468,-400.0,0.00015068,2]
[380973973,1755913895477,-400.0,0.00015068,2]
[380973974,1755913895488,-1097.09,0.00015068,2]
[380973975,1755913895498,-406.80207668,0.00015068,2]
[380973976,1755913895508,-400.0,0.00015068,2]
[380973977,1755913895518,-400.0,0.00015068,2]
[380973978,1755913895528,-400.0,0.00015068,2]
[380973979,1755913895538,-400.0,0.00015068,2]
[380973980,1755913895548,-400.0,0.00015068,2]
[380973981,1755913895558,-400.0,0.00015068,2]
[380973982,1755913895568,-400.0,0.00015068,2]
[380973983,1755913895578,-400.0,0.00015068,2]
[380973984,1755913895587,-400.0,0.00015068,2]
[380973985,1755913895597,-463.17407283,0.00015068,2]
[380973986,1755913895606,-400.0,0.00015068,2]
[380973987,1755913895616,-400.0,0.00015068,2]
[380973988,1755913895625,-400.0,0.00015068,2]
[380973989,1755913895635,-549.15,0.00015068,2]
[380973990,1755913895645,-724.1,0.00015068,2]
[380973991,1755913895656,-400.0,0.00015068,2]
[380973992,1755913895667,-614.27,0.00015068,2]
[380973993,1755913895676,-400.0,0.00015068,2]
[380973994,1755913895687,-400.0,0.00015068,2]
[380973995,1755913895696,-400.0,0.00015068,2]
[380973996,1755913895707,-400.0,0.00015068,2]
[380973997,1755913895717,-400.0,0.00015068,2]
[380973998,1755913895728,-537.14,0.00015068,2]
[380973999,1755913895738,-523.22,0.00015068,2]
[380974000,1755913895747,-400.0,0.00015068,2]
[380974001,1755913895758,-400.0,0.00015068,2]
[380974002,1755913895767,-400.0,0.00015068,2]
[380974003,1755913895777,-1689.58,0.00015068,2]
[380974004,1755913895789,-400.0,0.00015068,2]
[380974005,1755913895799,-400.0,0.00015068,2]
[380974006,1755913895809,-400.0,0.00015068,2]
[380974007,1755913895819,-510.2,0.00015068,2]
[380974008,1755913895829,-400.0,0.00015068,2]
[380974009,1755913895839,-400.0,0.00015068,2]
[380974010,1755913895849,-400.0,0.00015068,2]
[380974011,1755913895859,-400.0,0.00015068,2]
[380974012,1755913895869,-400.0,0.00015068,2]
[380974013,1755913895879,-400.0,0.00015068,2]
[380974014,1755913895889,-400.0,0.00015068,2]
[380974015,1755913895899,-400.0,0.00015068,2]
[380974016,1755913895910,-400.0,0.00015068,2]
[380974017,1755913895921,-400.0,0.00015068,2]
[380974018,1755913895931,-400.0,0.00015068,2]
[380974019,1755913895941,-400.0,0.00015068,2]
[380974020,1755913895952,-1212.5,0.00015068,2]
[380974021,1755913895962,-400.0,0.00015068,2]
[380974022,1755913895971,-1204.15,0.00015068,2]
[380974023,1755913895981,-400.0,0.00015068,2]
[380974024,1755913896179,-400.0,0.00015068,2]
[380974025,1755913896191,-400.0,0.00015068,2]
[380974026,1755913896201,-400.0,0.00015068,2]
[380974027,1755913896210,-400.0,0.00015068,2]
[380974028,1755913896220,-400.0,0.00015068,2]
[380974029,1755913896229,-404.30424233,0.00015068,2]
[380974030,1755913896238,-400.0,0.00015068,2]
[380974031,1755913896247,-400.0,0.00015068,2]
[380974032,1755913896256,-400.0,0.00015068,2]
[380974033,1755913896266,-400.0,0.00015068,2]
[380974034,1755913896279,-772.57,0.00015068,2]
[380974035,1755913896289,-532.68607912,0.00015068,2]
[380974036,1755913896298,-400.0,0.00015068,2]
[380974037,1755913896308,-400.0,0.00015068,2]
[380974038,1755913896318,-980.12,0.00015068,2]
[380974039,1755913896329,-883.06,0.00015068,2]
[380974040,1755913896339,-400.0,0.00015068,2]
[380974041,1755913896349,-632.61,0.00015068,2]
[380974042,1755913896358,-400.0,0.00015068,2]
[380974043,1755913896368,-400.0,0.00015068,2]
[380974044,1755913896377,-400.0,0.00015068,2]
[380974045,1755913896387,-400.0,0.00015068,2]
[380974046,1755913896398,-405.78,0.00015068,2]
[380974047,1755913896408,-400.0,0.00015068,2]
[380974048,1755913896419,-400.0,0.00015068,2]
[380974049,1755913896429,-400.0,0.00015068,2]
[380974050,1755913896440,-400.0,0.00015068,2]
[380974051,1755913896450,-404.35,0.00015068,2]
[380974052,1755913896460,-400.0,0.00015068,2]
[380974053,1755913896469,-400.0,0.00015068,2]
[380974054,1755913896479,-400.0,0.00015068,2]
[380974055,1755913896489,-400.0,0.00015068,2]
[380974056,1755913896499,-400.0,0.00015068,2]
[380974057,1755913896509,-227.242043,0.00015068,2]
[380974058,1755913896519,-400.0,0.00015068,2]
[380974059,1755913896530,-400.0,0.00015068,2]
[380974060,1755913896540,-400.0,0.00015068,2]
[380974061,1755913896550,-634.23,0.00015068,2]
[380974062,1755913896559,-400.0,0.00015068,2]
[380974063,1755913896569,-400.0,0.00015068,2]
[380974064,1755913896582,-400.0,0.00015068,2]
[380974065,1755913896592,-425.4,0.00015068,2]
[380974066,1755913896602,-400.0,0.00015068,2]
[380974067,1755913896612,-400.0,0.00015068,2]
[380974068,1755913896622,-400.0,0.00015068,2]
[380974069,1755913896631,-400.0,0.00015068,2]
[380974070,1755913896640,-400.0,0.00015068,2]
[380974071,1755913896650,-833.43,0.00015068,2]
[380974072,1755913896660,-400.0,0.00015068,2]
[380974073,1755913896670,-400.0,0.00015068,2]
[380974074,1755913896680,-400.0,0.00015068,2]
[380974075,1755913896689,-400.0,0.00015068,2]
[380974076,1755913896699,-400.0,0.00015068,2]
[380974077,1755913896708,-400.0,0.00015068,2]
[380974078,1755913896718,-400.0,0.00015068,2]
[380974079,1755913896727,-616.89,0.00015068,2]
[380974080,1755913896737,-400.0,0.00015068,2]
[380974081,1755913896746,-400.0,0.00015068,2]
[380974082,1755913896755,-400.0,0.00015068,2]
[380974083,1755913896765,-400.0,0.00015068,2]
[380974084,1755913896774,-400.0,0.00015068,2]
[380974085,1755913896784,-400.0,0.00015068,2]
[380974086,1755913896793,-869.7,0.00015068,2]
[380974087,1755913896803,-400.0,0.00015068,2]
[380974088,1755913896812,-400.0,0.00015068,2]
[380974089,1755913896821,-400.0,0.00015068,2]
[380974090,1755913896830,-353.76,0.00015068,2]
[380974091,1755913896840,-489.18,0.00015068,2]
[380974092,1755913896850,-400.0,0.00015068,2]
[380974093,1755913896860,-400.0,0.00015068,2]
[380974094,1755913896870,-400.0,0.00015068,2]
[380974095,1755913896879,-400.0,0.00015068,2]
[380974096,1755913896889,-400.0,0.00015068,2]
[380974097,1755913896899,-400.0,0.00015068,2]
[380974098,1755913896910,-400.0,0.00015068,2]
[380974099,1755913896921,-400.0,0.00015068,2]
[380974100,1755913896931,-637.03,0.00015068,2]
[380974101,1755913896941,-407.64045464,0.00015068,2]
[380974102,1755913896950,-400.0,0.00015068,2]
[380974103,1755913896960,-400.0,0.00015068,2]
[380974104,1755913896970,-400.0,0.00015068,2]
[380974105,1755913896981,-400.0,0.00015068,2]
[380974106,1755913896991,-685.38,0.00015068,2]
[380974107,1755913897001,-400.0,0.00015068,2]
[380974108,1755913897011,-400.0,0.00015068,2]
[380974109,1755913897021,-400.0,0.00015068,2]
[380974110,1755913897030,-410.93,0.00015068,2]
[380974111,1755913897040,-400.0,0.00015068,2]
[380974112,1755913897050,-400.0,0.00015068,2]
[380974113,1755913897059,-1033.44,0.00015068,2]
[380974114,1755913897069,-972.48,0.00015068,2]
[380974115,1755913897078,-400.0,0.00015068,2]
[380974116,1755913897087,-400.0,0.00015068,2]
[380974117,1755913897097,-768.78,0.00015068,2]
[380974118,1755913897107,-400.0,0.00015068,2]
[380974119,1755913897116,-570.64,0.00015068,2]
[380974120,1755913897125,-400.0,0.00015068,2]
[380974121,1755913897135,-400.0,0.00015068,2]
[380974122,1755913897145,-400.0,0.00015068,2]
[380974123,1755913897154,-400.0,0.00015068,2]
[380974124,1755913897163,-400.0,0.00015068,2]
[380974125,1755913897172,-400.0,0.00015068,2]
[380974126,1755913897182,-400.0,0.00015068,2]
[380974127,1755913897192,-226.6550297,0.00015068,2]
[380974128,1755913897203,-447.87,0.00015068,2]
[380974129,1755913897215,-400.0,0.00015068,2]
[380974130,1755913897225,-400.0,0.00015068,2]
[380974131,1755913897234,-512.96,0.00015068,2]
[380974132,1755913897244,-988.82,0.00015068,2]
[380974133,1755913897253,-400.0,0.00015068,2]
[380974134,1755913897263,-400.0,0.00015068,2]
[380974135,1755913897272,-400.0,0.00015068,2]
[380974136,1755913897281,-400.0,0.00015068,2]
[380974137,1755913897291,-400.0,0.00015068,2]
[380974138,1755913897300,-400.0,0.00015068,2]
[380974139,1755913897310,-413.51,0.00015068,2]
[380974140,1755913897320,-400.0,0.00015068,2]
[380974141,1755913897330,-400.0,0.00015068,2]
[380974142,1755913897339,-2431.87,0.00015068,2]
[380974143,1755913897349,-466.94,0.00015068,2]
[380974144,1755913897358,-400.0,0.00015068,2]
[380974145,1755913897367,-400.0,0.00015068,2]
[380974146,1755913897377,-400.0,0.00015068,2]
[380974147,1755913897386,-400.0,0.00015068,2]
[380974148,1755913897395,-400.0,0.00015068,2]
[380974149,1755913897405,-400.0,0.00015068,2]
[380974150,1755913897414,-400.0,0.00015068,2]
[380974151,1755913897423,-400.0,0.00015068,2]
[380974152,1755913897432,-853.54,0.00015068,2]
[380974153,1755913897442,-400.0,0.00015068,2]
[380974154,1755913897451,-400.0,0.00015068,2]
[380974155,1755913897461,-400.0,0.00015068,2]
[380974156,1755913897470,-400.0,0.00015068,2]
[380974157,1755913897479,-400.0,0.00015068,2]
[380974158,1755913897489,-400.0,0.00015068,2]
[380974159,1755913897498,-400.0,0.00015068,2]
[380974160,1755913897507,-400.0,0.00015068,2]
[380974161,1755913897516,-400.0,0.00015068,2]
[380974162,1755913897526,-338.47711007,0.00015068,2]
[380974163,1755913897536,-489.91,0.00015068,2]
[380974164,1755913897545,-400.0,0.00015068,2]
[380974165,1755913897555,-741.41,0.00015068,2]
[380974166,1755913897564,-400.0,0.00015068,2]
[380974167,1755913897574,-400.0,0.00015068,2]
[380974168,1755913897584,-400.0,0.00015068,2]
[380974169,1755913897593,-431.68,0.00015068,2]
[380974170,1755913897603,-498.52,0.00015068,2]
[380974171,1755913897613,-400.0,0.00015068,2]
[380974172,1755913897623,-400.0,0.00015068,2]
[380974173,1755913897632,-617.2,0.00015068,2]
[380974174,1755913897643,-400.0,0.00015068,2]
[380974175,1755913897652,-400.0,0.00015068,2]
[380974176,1755913897662,-403.12550125,0.00015068,2]
[380974177,1755913897671,-974.48,0.00015068,2]
[380974178,1755913897680,-400.0,0.00015068,2]
[380974179,1755913897690,-400.0,0.00015068,2]
[380974180,1755913897699,-400.0,0.00015068,2]
[380974181,1755913897708,-299.33208401,0.00015068,2]
[380974182,1755913897717,-400.0,0.00015068,2]
[380974183,1755913897727,-400.0,0.00015068,2]
[380974184,1755913897737,-400.0,0.00015068,2]
[380974185,1755913897748,-400.0,0.00015068,2]
[380974186,1755913897758,-400.0,0.00015068,2]
[380974187,1755913897767,-432.93,0.00015068,2]
[380974188,1755913897777,-358.46136097,0.00015068,2]
[380974189,1755913897789,-400.0,0.00015068,2]
[380974190,1755913897806,-528.94,0.00015068,2]
[380974191,1755913897815,-400.0,0.00015068,2]
[380974192,1755913897825,-400.0,0.00015068,2]
[380974193,1755913897835,-400.0,0.00015068,2]
[380974194,1755913897844,-240.94605181,0.00015068,2]
[380974195,1755913897853,-458.74,0.00015068,2]
[380974196,1755913897863,-1339.21,0.00015068,2]
[380974197,1755913897873,-400.0,0.00015068,2]
[380974198,1755913897882,-400.0,0.00015068,2]
[380974199,1755913897892,-209.20686901,0.00015068,2]
[380974200,1755913897902,-402.57840695,0.00015068,2]
[380974201,1755913897913,-400.0,0.00015068,2]
[380974202,1755913897924,-400.0,0.00015068,2]
[380974203,1755913897933,-400.0,0.00015068,2]
[380974204,1755913897943,-400.0,0.00015068,2]
[380974205,1755913897954,-400.0,0.00015068,2]
[380974206,1755913897963,-400.0,0.00015068,2]
[380974207,1755913897973,-400.0,0.00015068,2]
[380974208,1755913897984,-400.0,0.00015068,2]
[380974209,1755913897995,-400.0,0.00015068,2]
[380974210,1755913898005,-564.93,0.00015068,2]
[380974211,1755913898015,-400.0,0.00015068,2]
[380974212,1755913898025,-400.0,0.00015068,2]
[380974213,1755913898034,-400.0,0.00015068,2]
[380974214,1755913898044,-400.0,0.00015068,2]
[380974215,1755913898053,-475.75,0.00015068,2]
[380974216,1755913898063,-400.0,0.00015068,2]
[380974217,1755913898072,-737.21,0.00015068,2]
[380974218,1755913898082,-400.0,0.00015068,2]
[380974219,1755913898091,-400.0,0.00015068,2]
[380974220,1755913898101,-400.0,0.00015068,2]
[380974221,1755913898110,-400.0,0.00015068,2]
[380974222,1755913898119,-400.0,0.00015068,2]
[380974223,1755913898129,-400.0,0.00015068,2]
[380974224,1755913898138,-400.0,0.00015068,2]
[380974225,1755913898147,-400.0,0.00015068,2]
[380974226,1755913898157,-527.5,0.00015068,2]
[380974227,1755913898167,-524.04740023,0.00015068,2]
[380974228,1755913898176,-400.0,0.00015068,2]
[380974229,1755913898185,-400.0,0.00015068,2]
[380974230,1755913898195,-400.0,0.00015068,2]
[380974231,1755913898204,-400.0,0.00015068,2]
[380974232,1755913898214,-400.0,0.00015068,2]
[380974233,1755913898224,-400.0,0.00015068,2]
[380974234,1755913898233,-400.0,0.00015068,2]
[380974235,1755913898243,-530.43,0.00015068,2]
[380974236,1755913898253,-400.0,0.00015068,2]
[380974237,1755913898262,-1937.49,0.00015068,2]
[380974238,1755913898272,-400.0,0.00015068,2]
[380974239,1755913898282,-400.0,0.00015068,2]
[380974240,1755913898291,-544.96,0.00015068,2]
[380974241,1755913898300,-677.76,0.00015068,2]
[380974242,1755913898309,-400.0,0.00015068,2]
[380974243,1755913898319,-400.0,0.00015068,2]
[380974244,1755913898329,-400.0,0.00015068,2]
[380974245,1755913898338,-400.0,0.00015068,2]
[380974246,1755913898347,-400.0,0.00015068,2]
[380974247,1755913898356,-400.0,0.00015068,2]
[380974248,1755913898365,-400.0,0.00015068,2]
[380974249,1755913898375,-400.0,0.00015068,2]
[380974250,1755913898384,-400.0,0.00015068,2]
[380974251,1755913898393,-400.0,0.00015068,2]
[380974252,1755913898403,-400.0,0.00015068,2]
[380974253,1755913898413,-400.0,0.00015068,2]
[380974254,1755913898422,-400.0,0.00015068,2]
[380974255,1755913898432,-1044.43714907,0.00015068,2]
[380974256,1755913898441,-176.42959337,0.00015068,2]
[380974257,1755913898451,-300.0,0.00015068,2]
[380974258,1755913898460,-530.07,0.00015068,2]
[380974259,1755913898469,-168.0,0.00015138,2]
[380974260,1755913898479,-334.5472959,0.000152,2]
[380974261,1755913898488,-160.0,0.000152,2]
[380974262,1755913898498,-287.61899177,0.000152,2]
[380974263,1755913898508,-150.0,0.000152,3]
[380974264,1755913898517,-644.58894388,0.00015242,2]
[380974265,1755913898526,-27142.5503398,0.00015256,2]
[380974266,1755913898536,-12872.85156033,0.00015258,2]
[380974267,1755913898546,-3373.0,0.00015298,2]
[380974268,1755913898555,-582.009,0.00015298,2]
[380974269,1755913898565,-884.0,0.00015298,2]
[380974270,1755913898575,-2030.0,0.00015298,2]
[380974271,1755913898585,-600.533,0.00015298,2]
[380974272,1755913898594,-567.397,0.00015298,2]
[380974273,1755913898603,-1298.0,0.00015298,2]
[380974274,1755913898613,-1657.0,0.00015298,2]
[380974275,1755913898622,-6093.0,0.00015298,2]
[380974276,1755913898631,-4153.0,0.00015298,2]
[380974277,1755913898640,-21510.0,0.00015298,2]
[380974278,1755913898650,-250.0,0.00015298,2]
[380974279,1755913898659,-151.0,0.00015298,2]
[380974280,1755913898668,-151.0,0.00015298,2]
[380974281,1755913898678,-151.0,0.00015298,2]
[380974282,1755913898687,-151.0,0.00015298,2]
[380974283,1755913898697,-151.0,0.00015298,2]
[380974284,1755913898707,-151.0,0.00015298,2]
[380974285,1755913898716,-151.449977,0.00015298,2]
[380974286,1755913898725,-199.321189,0.00015298,2]
[380974287,1755913898735,-152.464704,0.00015298,2]
[380974288,1755913898744,-151.0,0.00015298,2]
[380974289,1755913898754,-151.0,0.00015298,2]
[380974290,1755913898764,-151.0,0.00015298,2]
[380974291,1755913898774,-150.0,0.000153,3]
[380974292,1755913898783,-258.017788,0.00015303,2]
[380974293,1755913898792,-151.0,0.00015303,2]
[380974294,1755913898803,-426.74,0.00015342,2]
[380974295,1755913898812,-400.0,0.00015342,2]
[380974296,1755913898823,-400.0,0.00015342,2]
[380974297,1755913898834,-400.0,0.00015342,2]
[380974298,1755913898851,-400.0,0.00015342,2]
[380974299,1755913898861,-428.82,0.00015342,2]
[380974300,1755913898871,-400.0,0.00015342,2]
[380974301,1755913898880,-400.0,0.00015342,2]
[380974302,1755913898889,-400.0,0.00015342,2]
[380974303,1755913898898,-400.0,0.00015342,2]
[380974304,1755913898908,-400.0,0.00015342,2]
[380974305,1755913898922,-850.01,0.00015342,2]
[380974306,1755913898932,-400.0,0.00015342,2]
[380974307,1755913898942,-436.74,0.00015342,2]
[380974308,1755913898952,-628.35,0.00015342,2]
[380974309,1755913898962,-703.68,0.00015342,2]
[380974310,1755913898972,-400.0,0.00015342,2]
[380974311,1755913898982,-576.98,0.00015342,2]
[380974312,1755913898993,-402.93,0.00015342,2]
[380974313,1755913899003,-400.0,0.00015342,2]
[380974314,1755913899013,-672.8,0.00015342,2]
[380974315,1755913899022,-400.0,0.00015342,2]
[380974316,1755913899031,-400.0,0.00015342,2]
[380974317,1755913899041,-400.0,0.00015342,2]
[380974318,1755913899050,-1009.87472099,0.00015342,2]
[380974319,1755913899059,-400.0,0.00015342,2]
[380974320,1755913899068,-459.35,0.00015342,2]
[380974321,1755913899081,-640.17,0.00015342,2]
[380974322,1755913899091,-400.0,0.00015342,2]
[380974323,1755913899100,-400.0,0.00015342,2]
[380974324,1755913899110,-400.0,0.00015342,2]
[380974325,1755913899119,-400.0,0.00015342,2]
[380974326,1755913899129,-400.0,0.00015342,2]
[380974327,1755913899139,-400.0,0.00015342,2]
[380974328,1755913899148,-400.0,0.00015342,2]
[380974329,1755913899158,-400.0,0.00015342,2]
[380974330,1755913899167,-400.0,0.00015342,2]
[380974331,1755913899176,-400.0,0.00015342,2]
[380974332,1755913899185,-403.73977251,0.00015342,2]
[380974333,1755913899194,-400.0,0.00015342,2]
[380974334,1755913899203,-531.18,0.00015342,2]
[380974335,1755913899212,-400.0,0.00015342,2]
[380974336,1755913899221,-400.0,0.00015342,2]
[380974337,1755913899230,-400.0,0.00015342,2]
[380974338,1755913899240,-400.0,0.00015342,2]
[380974339,1755913899249,-400.0,0.00015342,2]
[380974340,1755913899258,-510.53,0.00015342,2]
[380974341,1755913899268,-400.0,0.00015342,2]
[380974342,1755913899277,-431.03,0.00015342,2]
[380974343,1755913899286,-483.41,0.00015342,2]
[380974344,1755913899295,-400.0,0.00015342,2]
[380974345,1755913899304,-163.69884304,0.00015342,2]
[380974346,1755913899313,-400.0,0.00015342,2]
[380974347,1755913899324,-1056.61,0.00015342,2]
[380974348,1755913899335,-400.0,0.00015342,2]
[380974349,1755913899344,-838.26,0.00015342,2]
[380974350,1755913899354,-400.0,0.00015342,2]
[380974351,1755913899363,-423.47,0.00015342,2]
[380974352,1755913899372,-400.0,0.00015342,2]
[380974353,1755913899382,-484.92,0.00015342,2]
[380974354,1755913899392,-400.0,0.00015342,2]